fUST/lending_fUST_20260102
["ID","MTS","AMOUNT","RATE_DAILY","PERIOD"]
[400307088,1767341905846,-332.38653176,0.00037044,60]
[400307089,1767341905874,-577.74821612,0.00037044,60]
[400307090,1767341905903,-397.05796093,0.00037044,60]
[400307091,1767341905932,-500.10376134,0.00037044,60]
[400307092,1767341905960,-275.20257446,0.00037044,60]
[400307093,1767341905986,-244.50734963,0.00037044,60]
[400307094,1767341906013,-243.60424142,0.00037044,60]
[400307095,1767341906039,-499.01137452,0.00037044,60]
[400307096,1767341906066,-536.48662307,0.00037044,60]
[400307097,1767341906093,-500.0,0.00037044,60]
[400307098,1767341906119,-240.3363275,0.00037044,60]
[400307099,1767341906144,-486.05775231,0.00037044,60]
[400307100,1767341906170,-260.50595595,0.00037044,60]
[400307101,1767341906196,-500.0,0.00037044,60]
[400307102,1767341906223,-359.38367366,0.00037044,60]
[400307103,1767341906250,-500.0,0.00037044,60]
[400307104,1767341906277,-340.90403203,0.00037044,60]
[400307105,1767341906304,-237.44934628,0.00037044,60]
[400307106,1767341906332,-500.0,0.00037044,30]
[400307107,1767341906361,-500.0,0.00037044,30]
[400307108,1767341906390,-500.0,0.00037044,30]
[400307109,1767341906418,-500.0,0.00037044,30]
[400307110,1767341906446,-500.0,0.00037044,30]
[400307111,1767341906474,-500.0,0.00037044,30]
[400307112,1767341906501,-500.0,0.00037044,30]
[400307113,1767341906529,-593.42536283,0.00037044,30]
[400307114,1767341906557,-500.0,0.00037044,60]
[400307115,1767341906585,-502.61094808,0.00037044,60]
[400307116,1767341906614,-413.78418587,0.00037044,60]
[400307117,1767341906643,-188.46293043,0.00037044,60]
[400307118,1767341906672,-500.0,0.00037044,60]
[400307119,1767341906700,-500.0,0.00037044,60]
[400307120,1767341906725,-163.90025631,0.00037044,60]
[400307121,1767341906751,-198.77922044,0.00037044,60]
[400307122,1767341906776,-502.56322412,0.00037044,60]
[400307123,1767341906800,-500.0,0.00037044,60]
[400307124,1767341906826,-510.81736752,0.00037044,60]
[400307125,1767341906853,-500.0,0.00037044,60]
[400307126,1767341906880,-505.61369503,0.00037044,60]
[400307127,1767341906906,-540.59120548,0.00037044,60]
[400307128,1767341906932,-200.0,0.00037044,60]
[400307129,1767341906959,-249.90193979,0.00037044,60]
[400307130,1767341906984,-200.0,0.00037044,60]
[400307131,1767341907013,-200.0,0.00037044,60]
[400307132,1767341907038,-200.0,0.00037044,60]
[400307133,1767341907066,-200.0,0.00037044,60]
[400307134,1767341907093,-200.0,0.00037044,60]
[400307135,1767341907119,-200.0,0.00037044,60]
[400307136,1767341907146,-200.0,0.00037044,60]
[400307137,1767341907172,-200.0,0.00037044,60]
[400307138,1767341907198,-200.0,0.00037044,60]
[400307139,1767341907225,-200.0,0.00037044,60]
[400307140,1767341907252,-200.0,0.00037044,60]
[400307141,1767341907280,-200.0,0.00037044,60]
[400307142,1767341907307,-520.83186213,0.00037044,60]
[400307143,1767341907334,-200.0,0.00037044,60]
[400307144,1767341907362,-496.27637276,0.00037044,60]
[400307145,1767341907390,-312.21409925,0.00037044,60]
[400307146,1767341907418,-169.85364139,0.00037044,60]
[400307147,1767341907446,-314.84843322,0.00037044,60]
[400307148,1767341907475,-465.17642433,0.00037044,60]
[400307149,1767341907503,-551.39993495,0.00037044,60]
[400307150,1767341907531,-523.59492514,0.00037044,60]
[400307151,1767341907559,-542.11495677,0.00037044,60]
[400307152,1767341907587,-543.55504268,0.00037044,60]
[400307153,1767341907617,-500.0,0.00037044,60]
[400307154,1767341907647,-443.16046482,0.00037044,60]
[400307155,1767341907676,-205.494508,0.00037044,60]
[400307156,1767341907704,-507.45601629,0.00037044,60]
[400307157,1767341907733,-312.42405339,0.00037044,60]
[400307158,1767341907761,-524.00047404,0.00037044,60]
[400307159,1767341907789,-578.80062318,0.00037044,60]
[400307160,1767341907816,-161.80729315,0.00037044,60]
[400307161,1767341907843,-542.04384079,0.00037044,60]
[400307162,1767341907870,-249.98133285,0.00037044,60]
[400307163,1767341907897,-164.75331969,0.00037044,60]
[400307164,1767341907927,-269.82738076,0.00037044,60]
[400307165,1767341907955,-500.0,0.00037044,60]
[400307166,1767341908122,-500.0,0.00037044,60]
[400307167,1767341908155,-500.0,0.00037044,60]
[400307168,1767341908187,-500.0,0.00037044,60]
[400307169,1767341908216,-500.0,0.00037044,60]
[400307170,1767341908246,-500.0,0.00037044,60]
[400307171,1767341908275,-500.0,0.00037044,60]
[400307172,1767341908304,-500.0,0.00037044,60]
[400307173,1767341908332,-500.0,0.00037044,60]
[400307174,1767341908359,-500.0,0.00037044,60]
[400307175,1767341908387,-500.0,0.00037044,60]
[400307176,1767341908414,-500.0,0.00037044,60]
[400307177,1767341908443,-500.0,0.00037044,60]
[400307178,1767341908470,-500.0,0.00037044,60]
[400307179,1767341908498,-500.0,0.00037044,60]
[400307180,1767341908525,-500.0,0.00037044,60]
[400307181,1767341908553,-500.0,0.00037044,60]
[400307182,1767341908580,-500.0,0.00037044,60]
[400307183,1767341908610,-500.0,0.00037044,60]
[400307184,1767341908638,-500.0,0.00037044,60]
[400307185,1767341908668,-500.0,0.00037044,60]
[400307186,1767341908701,-500.0,0.00037044,60]
[400307187,1767341908735,-500.0,0.00037044,60]
[400307188,1767341908763,-285.53819031,0.00037044,60]
[400307189,1767341908790,-478.03451894,0.00037044,60]
[400307190,1767341908818,-359.86181455,0.00037044,60]
[400307191,1767341908844,-277.69489582,0.00037044,60]
[400307192,1767341908871,-416.16238419,0.00037044,60]
[400307193,1767341908900,-480.0,0.00037044,60]
[400307194,1767341908928,-500.0,0.00037044,60]
[400307195,1767341908955,-408.80185517,0.00037044,60]
[400307196,1767341908983,-500.0,0.00037044,60]
[400307197,1767341909011,-500.0,0.00037044,60]
[400307198,1767341909038,-500.0,0.00037044,60]
[400307199,1767341909064,-500.0,0.00037044,60]
[400307200,1767341909093,-500.0,0.00037044,60]
[400307201,1767341909120,-567.37199948,0.00037044,60]
[400307202,1767341909148,-500.0,0.00037044,60]
[400307203,1767341909174,-500.0,0.00037044,60]
[400307204,1767341909201,-500.0,0.00037044,60]
[400307205,1767341909228,-500.0,0.00037044,60]
[400307206,1767341909255,-500.0,0.00037044,60]
[400307207,1767341909281,-291.9149683,0.00037044,60]
[400307208,1767341909309,-500.0,0.00037044,60]
[400307209,1767341909338,-500.0,0.00037044,60]
[400307210,1767341909367,-208.03457304,0.00037044,60]
[400307211,1767341909397,-500.0,0.00037044,60]
[400307212,1767341909426,-454.47141756,0.00037044,60]
[400307213,1767341909456,-237.24363992,0.00037044,60]
[400307214,1767341909484,-500.0,0.00037044,60]
[400307215,1767341909512,-589.26741187,0.00037044,60]
[400307216,1767341909542,-500.0,0.00037044,60]
[400307217,1767341909569,-154.10323633,0.00037044,60]
[400307218,1767341909597,-500.0,0.00037044,60]
[400307219,1767341909628,-269.55401844,0.00037044,60]
[400307220,1767341909659,-502.11913228,0.00037044,60]
[400307221,1767341909687,-500.0,0.00037044,60]
[400307222,1767341909713,-514.83287249,0.00037044,60]
[400307223,1767341909740,-500.0,0.00037044,60]
[400307224,1767341909766,-439.10224419,0.00037044,60]
[400307225,1767341909793,-500.0,0.00037044,60]
[400307226,1767341909819,-500.0,0.00037044,60]
[400307227,1767341909846,-320.50455916,0.00037044,60]
[400307228,1767341909872,-446.25602641,0.00037044,60]
[400307229,1767341909897,-540.35435081,0.00037044,60]
[400307230,1767341909923,-504.24849738,0.00037044,60]
[400307231,1767341909951,-500.0,0.00037044,60]
[400307232,1767341909978,-520.47506424,0.00037044,60]
[400307233,1767341910005,-421.19303198,0.00037044,60]
[400307234,1767341910032,-585.98581839,0.00037044,60]
[400307235,1767341910059,-500.0,0.00037044,60]
[400307236,1767341910085,-209.52360378,0.00037044,60]
[400307237,1767341910112,-466.07509935,0.00037044,60]
[400307238,1767341910140,-500.0,0.00037044,60]
[400307239,1767341910166,-367.57,0.00037044,60]
[400307240,1767341910192,-500.0,0.00037044,60]
[400307241,1767341910217,-234.61292335,0.00037044,60]
[400307242,1767341910243,-539.72939321,0.00037044,60]
[400307243,1767341910269,-540.89572223,0.00037044,60]
[400307244,1767341910296,-467.97187195,0.00037044,60]
[400307245,1767341910440,-500.0,0.00037044,60]
[400307246,1767341910470,-201.03319738,0.00037044,60]
[400307247,1767341910500,-262.15746461,0.00037044,60]
[400307248,1767341910529,-526.03252477,0.00037044,60]
[400307249,1767341910560,-500.0,0.00037044,60]
[400307250,1767341910588,-481.8284029,0.00037044,60]
[400307251,1767341910619,-421.2635019,0.00037044,60]
[400307252,1767341910648,-182.01761299,0.00037044,60]
[400307253,1767341910676,-500.0,0.00037044,60]
[400307254,1767341910703,-173.22896692,0.00037044,60]
[400307255,1767341910730,-500.0,0.00037044,60]
[400307256,1767341910758,-401.54347762,0.00037044,60]
[400307257,1767341910783,-500.0,0.00037044,60]
[400307258,1767341910811,-500.0,0.00037044,60]
[400307259,1767341910837,-500.0,0.00037044,60]
[400307260,1767341910864,-500.0,0.00037044,60]
[400307261,1767341910889,-500.0,0.00037044,60]
[400307262,1767341910915,-500.0,0.00037044,60]
[400307263,1767341910941,-280.16898553,0.00037044,60]
[400307264,1767341910967,-500.0,0.00037044,60]
[400307265,1767341910992,-556.23124158,0.00037044,60]
[400307266,1767341911018,-505.94539273,0.00037044,60]
[400307267,1767341911044,-461.1663882,0.00037044,60]
[400307268,1767341911070,-500.0,0.00037044,60]
[400307269,1767341911095,-500.0,0.00037044,60]
[400307270,1767341911122,-500.0,0.00037044,60]
[400307271,1767341911150,-241.82460212,0.00037044,60]
[400307272,1767341911176,-500.0,0.00037044,60]
[400307273,1767341911203,-500.0,0.00037044,60]
[400307274,1767341911230,-500.0,0.00037044,60]
[400307275,1767341911259,-500.0,0.00037044,60]
[400307276,1767341911289,-500.0,0.00037044,60]
[400307277,1767341911317,-500.0,0.00037044,60]
[400307278,1767341911345,-500.0,0.00037044,60]
[400307279,1767341911374,-500.0,0.00037044,60]
[400307280,1767341911403,-500.0,0.00037044,60]
[400307281,1767341911432,-500.0,0.00037044,60]
[400307282,1767341911460,-500.0,0.00037044,60]
[400307283,1767341911489,-500.0,0.00037044,60]
[400307284,1767341911518,-211.84487929,0.00037044,60]
[400307285,1767341911547,-500.0,0.00037044,60]
[400307286,1767341911575,-500.0,0.00037044,60]
[400307287,1767341911606,-591.90473935,0.00037044,60]
[400307288,1767341911634,-574.72021783,0.00037044,60]
[400307289,1767341911664,-500.0,0.00037044,60]
[400307290,1767341911691,-369.8243144,0.00037044,60]
[400307291,1767341911718,-609.59487794,0.00037044,60]
[400307292,1767341911745,-631.67803753,0.00037044,60]
[400307293,1767341911772,-500.0,0.00037044,60]
[400307294,1767341911798,-175.47113035,0.00037044,60]
[400307295,1767341911824,-500.0,0.00037044,60]
[400307296,1767341911850,-212.28169449,0.00037044,60]
[400307297,1767341911878,-597.89515711,0.00037044,60]
[400307298,1767341911905,-472.43516331,0.00037044,60]
[400307299,1767341911933,-500.0,0.00037044,60]
[400307300,1767341911961,-240.6284354,0.00037044,60]
[400307301,1767341911989,-455.54756754,0.00037044,60]
[400307302,1767341912016,-500.0,0.00037044,60]
[400307303,1767341912043,-309.48436996,0.00037044,60]
[400307304,1767341912070,-266.31207956,0.00037044,60]
[400307305,1767341912097,-467.3226223,0.00037044,60]
[400307306,1767341912124,-451.21829789,0.00037044,60]
[400307307,1767341912151,-500.0,0.00037044,60]
[400307308,1767341912178,-264.58967252,0.00037044,60]
[400307309,1767341912206,-500.0,0.00037044,60]
[400307310,1767341912234,-500.0,0.00037044,60]
[400307311,1767341912262,-376.57605656,0.00037044,60]
[400307312,1767341912292,-154.87011027,0.00037044,60]
[400307313,1767341912320,-500.0,0.00037044,60]
[400307314,1767341912348,-186.74301261,0.00037044,60]
[400307315,1767341912377,-420.24093909,0.00037044,60]
[400307316,1767341912404,-506.29481185,0.00037044,60]
[400307317,1767341912432,-298.23622285,0.00037044,60]
[400307318,1767341912460,-460.4,0.00037044,60]
[400307319,1767341912488,-542.53654435,0.00037044,60]
[400307320,1767341912516,-502.24203302,0.00037044,60]
[400307321,1767341912643,-500.0,0.00037044,60]
[400307322,1767341912672,-500.0,0.00037044,60]
[400307323,1767341912701,-500.0,0.00037044,60]
[400307324,1767341912728,-500.0,0.00037044,60]
[400307325,1767341912754,-500.0,0.00037044,60]
[400307326,1767341912780,-500.0,0.00037044,60]
[400307327,1767341912806,-500.0,0.00037044,60]
[400307328,1767341912832,-294.75936154,0.00037044,60]
[400307329,1767341912860,-500.0,0.00037044,60]
[400307330,1767341912888,-500.0,0.00037044,60]
[400307331,1767341912915,-500.0,0.00037044,60]
[400307332,1767341912943,-560.36692441,0.00037044,60]
[400307333,1767341912969,-500.0,0.00037044,60]
[400307334,1767341912995,-449.75043528,0.00037044,60]
[400307335,1767341913023,-500.0,0.00037044,60]
[400307336,1767341913049,-202.84860792,0.00037044,60]
[400307337,1767341913075,-510.59460701,0.00037044,60]
[400307338,1767341913101,-325.97139585,0.00037044,60]
[400307339,1767341913127,-514.21576207,0.00037044,60]
[400307340,1767341913153,-199.68809482,0.00037044,60]
[400307341,1767341913178,-500.0,0.00037044,60]
[400307342,1767341913205,-407.06258686,0.00037044,60]
[400307343,1767341913232,-266.96546935,0.00037044,60]
[400307344,1767341913259,-194.97521308,0.00037044,60]
[400307345,1767341913286,-200.2122594,0.00037044,60]
[400307346,1767341913314,-500.0,0.00037044,60]
[400307347,1767341913342,-411.66233336,0.00037044,60]
[400307348,1767341913370,-500.0,0.00037044,60]
[400307349,1767341913399,-477.6903805,0.00037044,60]
[400307350,1767341913429,-319.00913083,0.00037044,60]
[400307351,1767341913457,-475.80466127,0.00037044,60]
[400307352,1767341913484,-466.57651629,0.00037044,60]
[400307353,1767341913511,-322.44188906,0.00037044,60]
[400307354,1767341913538,-343.82611043,0.00037044,60]
[400307355,1767341913567,-351.99540559,0.00037044,60]
[400307356,1767341913596,-500.0,0.00037044,60]
[400307357,1767341913630,-501.0702477,0.00037044,60]
[400307358,1767341913658,-475.12253605,0.00037044,60]
[400307359,1767341913685,-451.50948086,0.00037044,60]
[400307360,1767341913715,-500.0,0.00037044,60]
[400307361,1767341913742,-310.26890877,0.00037044,60]
[400307362,1767341913769,-532.55966111,0.00037044,60]
[400307363,1767341913797,-244.37604783,0.00037044,60]
[400307364,1767341913826,-543.11673535,0.00037044,60]
[400307365,1767341913853,-278.51772586,0.00037044,60]
[400307366,1767341913894,-447.41258931,0.00037044,60]
[400307367,1767341913924,-494.57558877,0.00037044,60]
[400307368,1767341913954,-500.0,0.00037044,60]
[400307369,1767341913983,-527.71897386,0.00037044,60]
[400307370,1767341914013,-500.0,0.00037044,60]
[400307371,1767341914043,-500.0,0.00037044,60]
[400307372,1767341914072,-405.60325489,0.00037044,60]
[400307373,1767341914100,-500.40055821,0.00037044,60]
[400307374,1767341914128,-500.0,0.00037044,60]
[400307375,1767341914157,-500.0,0.00037044,60]
[400307376,1767341914185,-500.0,0.00037044,60]
[400307377,1767341914214,-500.0,0.00037044,60]
[400307378,1767341914242,-634.07643844,0.00037044,60]
[400307379,1767341914271,-502.65645277,0.00037044,60]
[400307380,1767341914300,-407.01979858,0.00037044,60]
[400307381,1767341914330,-500.0,0.00037044,60]
[400307382,1767341914359,-500.0,0.00037044,60]
[400307383,1767341914389,-427.85172549,0.00037044,60]
[400307384,1767341914420,-209.23710659,0.00037044,60]
[400307385,1767341914449,-500.0,0.00037044,60]
[400307386,1767341914478,-500.0,0.00037044,60]
[400307387,1767341914506,-500.0,0.00037044,60]
[400307388,1767341914540,-500.0,0.00037044,60]
[400307389,1767341914570,-500.0,0.00037044,60]
[400307390,1767341914599,-500.0,0.00037044,60]
[400307391,1767341914632,-500.0,0.00037044,60]
[400307392,1767341914663,-506.25336265,0.00037044,60]
[400307393,1767341914695,-476.40243588,0.00037044,60]
[400307394,1767341914858,-620.39959482,0.00037044,60]
[400307395,1767341914891,-500.0,0.00037044,60]
[400307396,1767341914920,-243.75152728,0.00037044,60]
[400307397,1767341914949,-554.91336816,0.00037044,60]
[400307398,1767341914978,-456.02507495,0.00037044,60]
[400307399,1767341915007,-267.07560628,0.00037044,60]
[400307400,1767341915035,-500.0,0.00037044,60]
[400307401,1767341915064,-203.15151136,0.00037044,60]
[400307402,1767341915091,-193.46560932,0.00037044,60]
[400307403,1767341915119,-486.90579994,0.00037044,60]
[400307404,1767341915150,-283.58227296,0.00037044,60]
[400307405,1767341915181,-341.01272669,0.00037044,60]
[400307406,1767341915210,-554.0852938,0.00037044,60]
[400307407,1767341915240,-500.0,0.00037044,60]
[400307408,1767341915269,-505.51616961,0.00037044,60]
[400307409,1767341915299,-500.0,0.00037044,60]
[400307410,1767341915330,-173.10422054,0.00037044,60]
[400307411,1767341915361,-481.33336921,0.00037044,60]
[400307412,1767341915392,-534.40366144,0.00037044,60]
[400307413,1767341915422,-529.37321776,0.00037044,60]
[400307414,1767341915452,-435.00348601,0.00037044,60]
[400307415,1767341915482,-500.0,0.00037044,60]
[400307416,1767341915512,-196.96189327,0.00037044,60]
[400307417,1767341915542,-279.24928243,0.00037044,60]
[400307418,1767341915571,-516.24763452,0.00037044,60]
[400307419,1767341915599,-285.55085615,0.00037044,60]
[400307420,1767341915634,-499.90494355,0.00037044,60]
[400307421,1767341915663,-500.0,0.00037044,60]
[400307422,1767341915691,-275.32759489,0.00037044,60]
[400307423,1767341915721,-500.0,0.00037044,60]
[400307424,1767341915751,-500.0,0.00037044,60]
[400307425,1767341915779,-477.85230569,0.00037044,60]
[400307426,1767341915808,-551.18912061,0.00037044,60]
[400307427,1767341915837,-510.46099657,0.00037044,60]
[400307428,1767341915865,-637.24210918,0.00037044,60]
[400307429,1767341915892,-500.0,0.00037044,60]
[400307430,1767341915918,-354.9093439,0.00037044,60]
[400307431,1767341915945,-500.0,0.00037044,60]
[400307432,1767341915972,-413.54648558,0.00037044,60]
[400307433,1767341915999,-500.0,0.00037044,60]
[400307434,1767341916025,-500.0,0.00037044,60]
[400307435,1767341916052,-604.34294543,0.00037044,60]
[400307436,1767341916079,-500.0,0.00037044,60]
[400307437,1767341916106,-500.0,0.00037044,60]
[400307438,1767341916134,-492.02337942,0.00037044,60]
[400307439,1767341916160,-599.08236144,0.00037044,60]
[400307440,1767341916186,-500.0,0.00037044,60]
[400307441,1767341916213,-450.15127443,0.00037044,60]
[400307442,1767341916241,-380.72209025,0.00037044,60]
[400307443,1767341916268,-438.14989638,0.00037044,60]
[400307444,1767341916296,-500.0,0.00037044,60]
[400307445,1767341916325,-243.25493276,0.00037044,60]
[400307446,1767341916354,-500.0,0.00037044,60]
[400307447,1767341916383,-500.0,0.00037044,60]
[400307448,1767341916413,-500.0,0.00037044,60]
[400307449,1767341916442,-500.0,0.00037044,60]
[400307450,1767341916470,-526.37169302,0.00037044,60]
[400307451,1767341916499,-338.98288814,0.00037044,60]
[400307452,1767341916530,-500.0,0.00037044,60]
[400307453,1767341916572,-242.11842486,0.00037044,60]
[400307454,1767341916606,-500.0,0.00037044,60]
[400307455,1767341916636,-500.0,0.00037044,60]
[400307456,1767341916667,-525.75437667,0.00037044,60]
[400307457,1767341916697,-571.19075364,0.00037044,60]
[400307458,1767341916727,-500.0,0.00037044,60]
[400307459,1767341916756,-430.92389824,0.00037044,60]
[400307460,1767341916785,-542.68122119,0.00037044,60]
[400307461,1767341916814,-380.09389519,0.00037044,60]
[400307462,1767341916843,-258.32632736,0.00037044,60]
[400307463,1767341916870,-461.63678649,0.00037044,60]
[400307464,1767341916898,-440.76744774,0.00037044,60]
[400307465,1767341916926,-512.54812956,0.00037044,60]
[400307466,1767341917084,-256.46094266,0.00037044,60]
[400307467,1767341917114,-500.59795119,0.00037044,60]
[400307468,1767341917143,-237.43165901,0.00037044,60]
[400307469,1767341917172,-231.13812863,0.00037044,60]
[400307470,1767341917201,-520.93670796,0.00037044,60]
[400307471,1767341917228,-515.54082269,0.00037044,60]
[400307472,1767341917256,-500.0,0.00037044,60]
[400307473,1767341917284,-303.82819267,0.00037044,60]
[400307474,1767341917314,-522.16991469,0.00037044,60]
[400307475,1767341917342,-500.0,0.00037044,60]
[400307476,1767341917370,-172.56259199,0.00037044,60]
[400307477,1767341917398,-355.53114759,0.00037044,60]
[400307478,1767341917427,-520.1994946,0.00037044,60]
[400307479,1767341917456,-500.0,0.00037044,60]
[400307480,1767341917486,-500.0,0.00037044,60]
[400307481,1767341917516,-500.0,0.00037044,60]
[400307482,1767341917545,-544.03303215,0.00037044,60]
[400307483,1767341917574,-250.23967185,0.00037044,60]
[400307484,1767341917607,-500.0,0.00037044,60]
[400307485,1767341917637,-500.0,0.00037044,60]
[400307486,1767341917667,-536.61246623,0.00037044,60]
[400307487,1767341917695,-318.02525477,0.00037044,60]
[400307488,1767341917723,-551.96095872,0.00037044,60]
[400307489,1767341917751,-500.0,0.00037044,60]
[400307490,1767341917778,-447.76737991,0.00037044,60]
[400307491,1767341917806,-464.35409769,0.00037044,60]
[400307492,1767341917833,-500.0,0.00037044,60]
[400307493,1767341917861,-385.99988,0.00037044,60]
[400307494,1767341917891,-500.0,0.00037044,60]
[400307495,1767341917919,-500.0,0.00037044,60]
[400307496,1767341917947,-589.49210008,0.00037044,60]
[400307497,1767341917975,-500.0,0.00037044,60]
[400307498,1767341918004,-518.90811473,0.00037044,60]
[400307499,1767341918032,-500.0,0.00037044,60]
[400307500,1767341918060,-500.0,0.00037044,60]
[400307501,1767341918088,-500.0,0.00037044,60]
[400307502,1767341918117,-500.0,0.00037044,60]
[400307503,1767341918145,-500.0,0.00037044,60]
[400307504,1767341918173,-500.0,0.00037044,60]
[400307505,1767341918202,-500.0,0.00037044,60]
[400307506,1767341918230,-500.0,0.00037044,60]
[400307507,1767341918259,-505.76466892,0.00037044,60]
[400307508,1767341918289,-235.75900618,0.00037044,60]
[400307509,1767341918319,-500.0,0.00037044,60]
[400307510,1767341918350,-392.68103288,0.00037044,60]
[400307511,1767341918379,-500.0,0.00037044,60]
[400307512,1767341918410,-182.01698477,0.00037044,60]
[400307513,1767341918440,-500.0,0.00037044,60]
[400307514,1767341918470,-537.28539205,0.00037044,60]
[400307515,1767341918499,-500.0,0.00037044,60]
[400307516,1767341918530,-500.0,0.00037044,60]
[400307517,1767341918560,-230.11032558,0.00037044,60]
[400307518,1767341918589,-500.0,0.00037044,60]
[400307519,1767341918619,-586.87934473,0.00037044,60]
[400307520,1767341918649,-500.0,0.00037044,60]
[400307521,1767341918678,-500.0,0.00037044,60]
[400307522,1767341918708,-500.0,0.00037044,60]
[400307523,1767341918738,-537.05006659,0.00037044,60]
[400307524,1767341918768,-412.58568993,0.00037044,60]
[400307525,1767341918797,-500.0,0.00037044,60]
[400307526,1767341918827,-500.0,0.00037044,60]
[400307527,1767341918857,-500.0,0.00037044,60]
[400307528,1767341918887,-500.0,0.00037044,60]
[400307529,1767341918917,-500.0,0.00037044,60]
[400307530,1767341918947,-461.31340513,0.00037044,60]
[400307531,1767341918977,-500.0,0.00037044,60]
[400307532,1767341919005,-501.9067064,0.00037044,60]
[400307533,1767341919033,-410.77189227,0.00037044,60]
[400307534,1767341919150,-574.0346549,0.00037044,60]
[400307535,1767341919188,-402.98345334,0.00037044,60]
[400307536,1767341919219,-500.0,0.00037044,60]
[400307537,1767341919247,-500.0,0.00037044,60]
[400307538,1767341919276,-354.94566316,0.00037044,60]
[400307539,1767341919307,-500.0,0.00037044,60]
[400307540,1767341919337,-168.99623194,0.00037044,60]
[400307541,1767341919368,-500.0,0.00037044,60]
[400307542,1767341919399,-500.0,0.00037044,60]
[400307543,1767341919436,-500.0,0.00037044,60]
[400307544,1767341919466,-500.0,0.00037044,60]
[400307545,1767341919497,-342.30640216,0.00037044,60]
[400307546,1767341919526,-500.0,0.00037044,60]
[400307547,1767341919556,-500.0,0.00037044,60]
[400307548,1767341919585,-500.0,0.00037044,60]
[400307549,1767341919615,-630.30417479,0.00037044,60]
[400307550,1767341919643,-283.44366066,0.00037044,60]
[400307551,1767341919673,-500.0,0.00037044,60]
[400307552,1767341919702,-500.0,0.00037044,60]
[400307553,1767341919729,-500.0,0.00037044,60]
[400307554,1767341919756,-478.88317377,0.00037044,60]
[400307555,1767341919783,-500.0,0.00037044,60]
[400307556,1767341919810,-500.0,0.00037044,60]
[400307557,1767341919837,-548.58662774,0.00037044,60]
[400307558,1767341919865,-500.0,0.00037044,60]
[400307559,1767341919894,-500.0,0.00037044,60]
[400307560,1767341919921,-500.0,0.00037044,60]
[400307561,1767341919949,-186.58961875,0.00037044,60]
[400307562,1767341919977,-500.0,0.00037044,60]
[400307563,1767341920003,-500.0,0.00037044,60]
[400307564,1767341920030,-500.0,0.00037044,60]
[400307565,1767341920057,-500.0,0.00037044,60]
[400307566,1767341920083,-500.0,0.00037044,30]
[400307567,1767341920111,-500.0,0.00037044,60]
[400307568,1767341920137,-500.0,0.00037044,60]
[400307569,1767341920164,-500.0,0.00037044,60]
[400307570,1767341920191,-371.49368469,0.00037044,60]
[400307571,1767341920218,-500.0,0.00037044,60]
[400307572,1767341920245,-500.0,0.00037044,60]
[400307573,1767341920273,-500.0,0.00037044,60]
[400307574,1767341920302,-154.85065176,0.00037044,60]
[400307575,1767341920332,-500.0,0.00037044,60]
[400307576,1767341920364,-230.71347732,0.00037044,60]
[400307577,1767341920396,-500.0,0.00037044,60]
[400307578,1767341920428,-500.0,0.00037044,60]
[400307579,1767341920460,-500.0,0.00037044,60]
[400307580,1767341920491,-500.0,0.00037044,60]
[400307581,1767341920521,-398.55903853,0.00037044,60]
[400307582,1767341920551,-500.0,0.00037044,60]
[400307583,1767341920581,-500.0,0.00037044,60]
[400307584,1767341920613,-500.0,0.00037044,60]
[400307585,1767341920646,-500.0,0.00037044,60]
[400307586,1767341920686,-500.0,0.00037044,60]
[400307587,1767341920714,-301.09611647,0.00037044,60]